fUSD/lending_fUSD_20240523
["ID","MTS","AMOUNT","RATE_DAILY","PERIOD"]
[327794350,1716488174591,-100000.0,0.00024599,2]
[327794351,1716488174642,-133689.3216,0.00024599,2]
[327794352,1716488174694,-32438.36485599,0.00024599,2]
[327794353,1716488174745,-1043.178,0.000246,2]
[327794354,1716488174800,-3229.1229,0.000246,2]
[327794355,1716488174850,-771.33,0.00024602,3]
[327794356,1716488174900,-354.62,0.00024612,2]
[327794357,1716488174947,-3420.64669362,0.00024651,2]
[327794358,1716488174995,-250.0,0.00024658,2]
[327794359,1716488175045,-257.1,0.00024661,3]
[327794360,1716488175097,-338.13330566,0.00024663,2]
[327794361,1716488175149,-338.13330566,0.00024663,2]
[327794362,1716488175200,-338.13330566,0.00024663,2]
[327794363,1716488175251,-338.13330566,0.00024663,2]
[327794364,1716488175309,-338.13330566,0.00024663,2]
[327794365,1716488175365,-338.13330566,0.00024663,2]
[327794366,1716488175416,-338.13330566,0.00024663,2]
[327794367,1716488175471,-338.13330566,0.00024663,2]
[327794368,1716488175521,-338.13330566,0.00024663,2]
[327794369,1716488175574,-338.13330566,0.00024663,2]
[327794370,1716488175630,-338.13330566,0.00024663,2]
[327794371,1716488175690,-338.13330566,0.00024663,2]
[327794372,1716488175745,-338.13330566,0.00024663,2]
[327794373,1716488175798,-338.13330566,0.00024663,2]
[327794374,1716488175848,-338.13330566,0.00024663,2]
[327794375,1716488175901,-338.13330566,0.00024663,2]
[327794376,1716488175955,-338.13330566,0.00024664,2]
[327794377,1716488176009,-338.13330566,0.00024665,2]
[327794378,1716488176062,-338.13330566,0.00024665,2]
[327794379,1716488176115,-338.13330566,0.00024665,2]
[327794380,1716488176171,-338.13330566,0.00024665,2]
[327794381,1716488176223,-338.13330566,0.00024665,2]
[327794382,1716488176278,-338.13330566,0.00024665,2]
[327794383,1716488176334,-338.13330566,0.00024665,2]
[327794384,1716488176388,-338.13330566,0.00024665,2]
[327794385,1716488176450,-338.13330566,0.00024665,2]
[327794386,1716488176507,-338.13330566,0.00024665,2]
[327794387,1716488176564,-338.13330566,0.00024665,2]
[327794388,1716488176619,-338.13330566,0.00024665,2]
[327794389,1716488176673,-338.13330566,0.00024665,2]
[327794390,1716488176727,-338.13330566,0.00024665,2]
[327794391,1716488176781,-338.13330566,0.00024665,2]
[327794392,1716488176832,-338.13330566,0.00024665,2]
[327794393,1716488176880,-338.13330566,0.00024665,2]
[327794394,1716488176935,-338.13330566,0.00024665,2]
[327794395,1716488176988,-338.13330566,0.00024665,2]
[327794396,1716488177038,-338.13330566,0.00024665,2]
[327794397,1716488177096,-338.13330566,0.00024665,2]
[327794398,1716488177150,-338.13330566,0.00024665,2]
[327794399,1716488177202,-338.13330566,0.00024665,2]
[327794400,1716488177253,-338.13330566,0.00024665,2]
[327794401,1716488177303,-338.13330566,0.00024665,2]
[327794402,1716488177352,-338.13330566,0.00024665,2]
[327794403,1716488177403,-338.13330566,0.00024665,2]
[327794404,1716488177453,-338.13330566,0.00024665,2]
[327794405,1716488177506,-338.13330566,0.00024665,2]
[327794406,1716488177561,-338.13330566,0.00024665,2]
[327794407,1716488177615,-338.13330566,0.00024665,2]
[327794408,1716488177669,-338.13330566,0.00024665,2]
[327794409,1716488177720,-338.13330566,0.00024665,2]
[327794410,1716488177772,-338.13330566,0.00024665,2]
[327794411,1716488177822,-338.13330566,0.00024665,2]
[327794412,1716488177872,-338.13330566,0.00024665,2]
[327794413,1716488177922,-338.13330566,0.00024665,2]
[327794414,1716488177971,-338.13330566,0.00024665,2]
[327794415,1716488178021,-338.13330566,0.00024665,2]
[327794416,1716488178068,-491.97686428,0.00024671,2]
[327794417,1716488178117,-537.37963433,0.00024671,2]
[327794418,1716488178165,-155.77150804,0.00024671,2]
[327794419,1716488178213,-202.8136146,0.00024671,2]
[327794420,1716488178263,-625.28216728,0.00024671,2]
[327794421,1716488178312,-1325.46693785,0.00024671,2]
[327794422,1716488178359,-155.0,0.00024671,2]
[327794423,1716488178411,-495.80235616,0.00024671,2]
[327794424,1716488178462,-453.38872077,0.00024671,2]
[327794425,1716488178514,-155.26040235,0.00024671,2]
[327794426,1716488178567,-178.24103796,0.00024671,2]
[327794427,1716488178619,-155.30075573,0.00024671,2]
[327794428,1716488178668,-302.1495827,0.00024671,2]
[327794429,1716488178717,-158.02957569,0.00024671,2]
[327794430,1716488178766,-347.69312394,0.00024671,7]
[327794431,1716488178814,-168.1344082,0.00024671,2]
[327794432,1716488178864,-157.51876589,0.00024671,2]
[327794433,1716488178915,-155.10639716,0.00024671,2]
[327794434,1716488178962,-711.4407162,0.00024671,2]
[327794435,1716488179011,-204.98320377,0.00024671,2]
[327794436,1716488179061,-157.57464759,0.00024671,2]
[327794437,1716488179109,-962.30983499,0.00024671,2]
[327794438,1716488179162,-4452.03245126,0.00024671,2]
[327794439,1716488179210,-155.50448482,0.00024671,2]
[327794440,1716488179259,-156.91735402,0.00024671,2]
[327794441,1716488179308,-2001.77490136,0.00024671,2]
[327794442,1716488179357,-205.87910916,0.00024671,2]
[327794443,1716488179409,-1756.15679186,0.00024671,2]
[327794444,1716488179462,-13966.24662287,0.00024672,2]
[327794445,1716488179516,-1043.31602865,0.00024672,2]
[327794446,1716488179566,-269.90804113,0.00024673,2]
[327794447,1716488179619,-365.31345789,0.00024673,2]
[327794448,1716488179673,-706.5074025,0.00024673,2]
[327794449,1716488179725,-155.0,0.00024673,2]
[327794450,1716488179775,-393.61297903,0.00024673,2]
[327794451,1716488179827,-155.10731523,0.00024673,2]
[327794452,1716488179879,-237.37139895,0.00024673,2]
[327794453,1716488179929,-155.35256194,0.00024673,2]
[327794454,1716488179982,-156.20876749,0.00024673,2]
[327794455,1716488180032,-239.36217723,0.00024673,2]
[327794456,1716488180080,-308.12039765,0.00024673,2]
[327794457,1716488180133,-228.65439518,0.00024673,2]
[327794458,1716488180192,-328.6004491,0.00024673,2]
[327794459,1716488180244,-222.61816632,0.00024673,2]
[327794460,1716488180294,-290.46686085,0.00024673,2]
[327794461,1716488180346,-219.87195782,0.00024673,2]
[327794462,1716488180406,-356.20503501,0.00024673,2]
[327794463,1716488180466,-156.27702837,0.00024673,2]
[327794464,1716488180525,-183.96279672,0.00024673,2]
[327794465,1716488180585,-156.17527754,0.00024673,2]
[327794466,1716488180636,-155.28938793,0.00024673,2]
[327794467,1716488180693,-155.6316116,0.00024673,2]
[327794468,1716488180745,-203.20001807,0.00024673,2]
[327794469,1716488180796,-156.6545225,0.00024673,2]
[327794470,1716488180848,-155.48781988,0.00024673,2]
[327794471,1716488180904,-155.54855135,0.00024673,2]
[327794472,1716488180958,-156.15341788,0.00024673,2]
[327794473,1716488181010,-197.32634628,0.00024673,2]
[327794474,1716488181064,-155.62562668,0.00024673,2]
[327794475,1716488181281,-155.2031768,0.00024673,2]
[327794476,1716488181330,-155.65800307,0.00024673,2]
[327794477,1716488181381,-943.55640269,0.00024673,2]
[327794478,1716488181427,-155.36593366,0.00024673,2]
[327794479,1716488181478,-3350.11470407,0.00024673,2]
[327794480,1716488181530,-155.63555811,0.00024673,2]
[327794481,1716488181582,-159.6029597,0.00024673,2]
[327794482,1716488181633,-318.10175994,0.00024673,2]
[327794483,1716488181686,-155.61849233,0.00024673,2]
[327794484,1716488181735,-213.12698884,0.00024673,2]
[327794485,1716488181790,-155.25209687,0.00024673,2]
[327794486,1716488181845,-155.0,0.00024673,2]
[327794487,1716488181901,-155.0,0.00024673,2]
[327794488,1716488181949,-155.79798287,0.00024673,2]
[327794489,1716488181998,-10528.10044356,0.00024673,2]
[327794490,1716488182046,-3113.27710354,0.00024673,2]
[327794491,1716488182093,-155.85062154,0.00024673,2]
[327794492,1716488182155,-475.01434833,0.00024673,2]
[327794493,1716488182202,-3009.22259408,0.00024673,2]
[327794494,1716488182253,-263.49737813,0.00024673,2]
[327794495,1716488182312,-163.57391201,0.00024673,2]
[327794496,1716488182365,-178.94187128,0.00024673,2]
[327794497,1716488182417,-254.88619318,0.00024673,2]
[327794498,1716488182470,-171.62039607,0.00024673,2]
[327794499,1716488182522,-155.48661893,0.00024673,2]
[327794500,1716488182572,-155.78110347,0.00024673,2]
[327794501,1716488182621,-156.37188983,0.00024673,2]
[327794502,1716488182669,-371.53769662,0.00024673,2]
[327794503,1716488182716,-243.24145589,0.00024674,2]
[327794504,1716488182768,-155.0,0.00024674,2]
[327794505,1716488182818,-156.11508961,0.00024674,2]
[327794506,1716488182866,-416.15700795,0.00024674,2]
[327794507,1716488182913,-155.0,0.00024674,2]
[327794508,1716488182958,-483.34075367,0.00024674,2]
[327794509,1716488183004,-155.65814052,0.00024674,2]
[327794510,1716488183050,-500.0,0.00024674,2]
[327794511,1716488183097,-500.0,0.00024674,2]
[327794512,1716488183152,-500.0,0.00024674,2]
[327794513,1716488183200,-500.0,0.00024674,2]
[327794514,1716488183250,-500.0,0.00024674,2]
[327794515,1716488183298,-502.02148258,0.00024674,2]
[327794516,1716488183346,-500.0,0.00024674,2]
[327794517,1716488183394,-500.0,0.00024674,2]
[327794518,1716488183446,-500.0,0.00024674,2]
[327794519,1716488183497,-500.0,0.00024674,2]
[327794520,1716488183546,-500.0,0.00024674,2]
[327794521,1716488183594,-500.0,0.00024674,2]
[327794522,1716488183642,-500.0,0.00024674,2]
[327794523,1716488183694,-500.0,0.00024674,2]
[327794524,1716488183745,-500.0,0.00024674,2]
[327794525,1716488183794,-500.0,0.00024674,2]
[327794526,1716488183843,-274.78,0.00024674,2]
[327794527,1716488183889,-19999.99,0.00024675,2]
[327794528,1716488183939,-29999.99,0.00024675,2]
[327794529,1716488183993,-1206.97,0.00024675,2]
[327794530,1716488184050,-8306.82,0.00024675,2]
[327794531,1716488184111,-354.62,0.00024677,2]
[327794532,1716488184169,-338.13330566,0.00024688,2]
[327794533,1716488184225,-338.13330566,0.00024688,2]
[327794534,1716488184278,-338.13330566,0.00024688,2]
[327794535,1716488184331,-338.13330566,0.00024688,2]
[327794536,1716488184386,-338.13330566,0.00024688,2]
[327794537,1716488184453,-338.13330566,0.00024688,2]
[327794538,1716488184514,-338.13330566,0.00024689,2]
[327794539,1716488184572,-338.13330566,0.00024689,2]
[327794540,1716488184630,-338.13330566,0.00024689,2]
[327794541,1716488184688,-338.13330566,0.00024689,2]
[327794542,1716488184744,-338.13330566,0.00024689,2]
[327794543,1716488184797,-338.13330566,0.00024689,2]
[327794544,1716488184849,-338.13330566,0.00024689,2]
[327794545,1716488184906,-338.13330566,0.00024689,2]
[327794546,1716488184954,-338.13330566,0.00024689,2]
[327794547,1716488185004,-338.13330566,0.00024689,2]
[327794548,1716488185054,-338.13330566,0.00024689,2]
[327794549,1716488185104,-338.13330566,0.00024689,2]
[327794550,1716488185157,-338.13330566,0.00024689,2]
[327794551,1716488185206,-338.13330566,0.00024689,2]
[327794552,1716488185257,-338.13330566,0.00024689,2]
[327794553,1716488185308,-338.13330566,0.00024689,2]
[327794554,1716488185357,-338.13330566,0.00024689,2]
[327794555,1716488185413,-338.13330566,0.00024689,2]
[327794556,1716488185464,-338.13330566,0.00024689,2]
[327794557,1716488185517,-338.13330566,0.00024689,2]
[327794558,1716488185565,-338.13330566,0.00024689,2]
[327794559,1716488185615,-338.13330566,0.00024689,2]
[327794560,1716488185670,-338.13330566,0.00024689,2]
[327794561,1716488185723,-338.13330566,0.00024689,2]
[327794562,1716488185780,-338.13330566,0.00024689,2]
[327794563,1716488185835,-338.13330566,0.00024689,2]
[327794564,1716488185889,-338.13330566,0.00024689,2]
[327794565,1716488185951,-338.13330566,0.00024689,2]
[327794566,1716488186006,-338.13330566,0.00024689,2]
[327794567,1716488186060,-338.13330566,0.00024689,2]
[327794568,1716488186112,-338.13330566,0.00024689,2]
[327794569,1716488186165,-338.13330566,0.00024689,2]
[327794570,1716488186216,-338.13330566,0.00024689,2]
[327794571,1716488186268,-338.13330566,0.00024689,2]
[327794572,1716488186319,-338.13330566,0.00024689,2]
[327794573,1716488186367,-338.13330566,0.00024689,2]
[327794574,1716488186415,-338.13330566,0.00024689,2]
[327794575,1716488186468,-338.13330566,0.00024689,2]
[327794576,1716488186518,-3008.22557685,0.00024698,2]
[327794577,1716488186570,-6304.98667378,0.00024698,2]
[327794578,1716488186619,-500.0,0.00024699,2]
[327794579,1716488186671,-500.0,0.00024699,2]
[327794580,1716488186724,-500.0,0.00024699,2]
[327794581,1716488186775,-518.87157633,0.00024699,2]
[327794582,1716488186825,-500.0,0.00024699,2]
[327794583,1716488186874,-500.0,0.00024699,2]
[327794584,1716488186922,-500.0,0.00024699,2]
[327794585,1716488186972,-500.0,0.00024699,2]
[327794586,1716488187025,-500.0,0.00024699,2]
[327794587,1716488187075,-500.0,0.00024699,2]
[327794588,1716488187126,-500.0,0.00024699,2]
[327794589,1716488187179,-500.0,0.00024699,2]
[327794590,1716488187229,-500.0,0.00024699,2]
[327794591,1716488187276,-500.0,0.00024699,2]
[327794592,1716488187324,-500.0,0.00024699,2]
[327794593,1716488187371,-500.0,0.00024699,2]
[327794594,1716488187423,-502.55985209,0.00024699,2]
[327794595,1716488187474,-588.54,0.00024699,2]
[327794596,1716488187528,-500.0,0.00024699,2]
[327794597,1716488187580,-500.0,0.00024699,2]
[327794598,1716488187630,-500.0,0.00024699,2]
[327794599,1716488187682,-500.0,0.00024699,2]
[327794600,1716488187735,-500.0,0.00024699,2]
[327794601,1716488187784,-500.0,0.00024699,2]
[327794602,1716488187834,-500.0,0.00024699,2]
[327794603,1716488187885,-500.0,0.00024699,2]
[327794604,1716488187938,-500.0,0.00024699,2]
[327794605,1716488187991,-500.0,0.00024699,2]
[327794606,1716488188044,-500.0,0.00024699,2]
[327794607,1716488188094,-517.56945506,0.00024699,2]
[327794608,1716488188159,-500.0,0.00024699,2]
[327794609,1716488188208,-503.56,0.00024699,2]
[327794610,1716488188255,-500.0,0.00024699,2]
[327794611,1716488188302,-500.0,0.00024699,2]
[327794612,1716488188352,-500.0,0.00024699,2]
[327794613,1716488188399,-500.0,0.00024699,2]
[327794614,1716488188455,-513.1,0.00024699,2]
[327794615,1716488188507,-500.0,0.00024699,2]
[327794616,1716488188558,-500.0,0.00024699,2]
[327794617,1716488188610,-500.0,0.00024699,2]
[327794618,1716488188664,-500.0,0.00024699,2]
[327794619,1716488188713,-500.0,0.00024699,2]
[327794620,1716488188763,-500.0,0.00024699,2]
[327794621,1716488188816,-500.0,0.00024699,2]
[327794622,1716488189022,-500.0,0.00024699,2]
[327794623,1716488189073,-500.0,0.00024699,2]
[327794624,1716488189122,-500.0,0.00024699,2]
[327794625,1716488189174,-500.0,0.00024699,2]
[327794626,1716488189224,-500.0,0.00024699,2]
[327794627,1716488189274,-500.0,0.00024699,2]
[327794628,1716488189323,-500.0,0.00024699,2]
[327794629,1716488189369,-517.72086128,0.00024699,2]
[327794630,1716488189419,-500.0,0.00024699,2]
[327794631,1716488189469,-500.0,0.00024699,2]
[327794632,1716488189519,-500.0,0.00024699,2]
[327794633,1716488189570,-904.18,0.00024699,2]
[327794634,1716488189619,-500.0,0.00024699,2]
[327794635,1716488189673,-500.0,0.00024699,2]
[327794636,1716488189724,-542.56,0.00024699,2]
[327794637,1716488189775,-500.0,0.00024699,2]
[327794638,1716488189824,-500.0,0.00024699,2]
[327794639,1716488189875,-500.0,0.00024699,2]
[327794640,1716488189922,-500.0,0.00024699,2]
[327794641,1716488189972,-500.0,0.00024699,2]
[327794642,1716488190022,-500.0,0.00024699,2]
[327794643,1716488190071,-514.61963428,0.00024699,2]
[327794644,1716488190120,-503.06,0.00024699,2]
[327794645,1716488190169,-512.12821118,0.00024699,2]
[327794646,1716488190219,-501.34,0.00024699,2]
[327794647,1716488190266,-515.403976,0.00024699,2]
[327794648,1716488190313,-500.0,0.00024699,2]
[327794649,1716488190361,-500.0,0.00024699,2]
[327794650,1716488190415,-500.0,0.00024699,2]
[327794651,1716488190468,-500.0,0.00024699,2]
[327794652,1716488190519,-544.62,0.00024699,2]
[327794653,1716488190570,-629.04,0.00024699,2]
[327794654,1716488190621,-579.88,0.00024699,2]
[327794655,1716488190671,-500.0,0.00024699,2]
[327794656,1716488190725,-500.0,0.00024699,2]
[327794657,1716488190775,-500.0,0.00024699,2]
[327794658,1716488190825,-500.0,0.00024699,2]
[327794659,1716488190875,-500.0,0.00024699,2]
[327794660,1716488190926,-816.25,0.00024699,2]
[327794661,1716488190975,-500.0,0.00024699,2]
[327794662,1716488191024,-554.33,0.00024699,2]
[327794663,1716488191076,-725.66,0.00024699,2]
[327794664,1716488191127,-791.28,0.00024699,2]
[327794665,1716488191184,-601.69,0.00024699,2]
[327794666,1716488191231,-500.0,0.00024699,2]
[327794667,1716488191277,-500.0,0.00024699,2]
[327794668,1716488191328,-500.0,0.00024699,2]
[327794669,1716488191377,-500.0,0.00024699,2]
[327794670,1716488191427,-500.0,0.00024699,2]
[327794671,1716488191478,-500.0,0.00024699,2]
[327794672,1716488191528,-514.09,0.00024699,2]
[327794673,1716488191578,-500.0,0.00024699,2]
[327794674,1716488191627,-527.3,0.00024699,2]
[327794675,1716488191677,-500.0,0.00024699,2]
[327794676,1716488191727,-500.0,0.00024699,2]
[327794677,1716488191777,-500.0,0.00024699,2]
[327794678,1716488191826,-500.0,0.00024699,2]
[327794679,1716488191874,-500.0,0.00024699,2]
[327794680,1716488191923,-500.0,0.00024699,2]
[327794681,1716488191970,-500.0,0.00024699,2]
[327794682,1716488192022,-500.0,0.00024699,2]
[327794683,1716488192072,-500.0,0.00024699,2]
[327794684,1716488192119,-500.0,0.00024699,2]
[327794685,1716488192169,-500.0,0.00024699,2]
[327794686,1716488192217,-500.0,0.00024699,2]
[327794687,1716488192268,-500.0,0.00024699,2]
[327794688,1716488192319,-500.0,0.00024699,2]
[327794689,1716488192367,-639.76,0.00024699,2]
[327794690,1716488192420,-500.0,0.00024699,2]
[327794691,1716488192471,-500.0,0.00024699,2]
[327794692,1716488192522,-537.79364616,0.00024699,2]
[327794693,1716488192570,-1185.54,0.00024699,2]
[327794694,1716488192619,-679.04,0.00024699,2]
[327794695,1716488192673,-500.0,0.00024699,2]
[327794696,1716488192722,-500.0,0.00024699,2]
[327794697,1716488192772,-500.0,0.00024699,2]
[327794698,1716488192823,-500.0,0.00024699,2]
[327794699,1716488192874,-552.82,0.00024699,2]
[327794700,1716488192927,-500.0,0.00024699,2]
[327794701,1716488192981,-500.0,0.00024699,2]
[327794702,1716488193035,-500.0,0.00024699,2]
[327794703,1716488193087,-500.0,0.00024699,2]
[327794704,1716488193142,-500.0,0.00024699,2]
[327794705,1716488193212,-500.0,0.00024699,2]
[327794706,1716488193267,-500.0,0.00024699,2]
[327794707,1716488193319,-500.0,0.00024699,2]
[327794708,1716488193372,-1980.71,0.00024699,2]
[327794709,1716488193423,-514.18176135,0.00024699,2]
[327794710,1716488193479,-500.0,0.00024699,2]
[327794711,1716488193532,-500.0,0.00024699,2]
[327794712,1716488193583,-615.42,0.00024699,2]
[327794713,1716488193637,-500.0,0.00024699,2]
[327794714,1716488193689,-500.0,0.00024699,2]
[327794715,1716488193739,-500.0,0.00024699,2]
[327794716,1716488193789,-500.0,0.00024699,2]
[327794717,1716488193840,-407.47797699,0.00024699,2]
[327794718,1716488193891,-576.74,0.00024699,2]
[327794719,1716488193943,-500.0,0.00024699,2]
[327794720,1716488193994,-500.0,0.00024699,2]
[327794721,1716488194048,-500.0,0.00024699,2]
[327794722,1716488194097,-500.0,0.00024699,2]
[327794723,1716488194150,-329.46450722,0.00024699,2]
[327794724,1716488194203,-1000.0,0.00024699,2]
[327794725,1716488194251,-519.76,0.00024699,2]
[327794726,1716488194301,-500.0,0.00024699,2]
[327794727,1716488194352,-500.0,0.00024699,2]
[327794728,1716488194402,-500.0,0.00024699,2]
[327794729,1716488194456,-500.0,0.00024699,2]
[327794730,1716488194508,-344.99165023,0.00024699,2]
[327794731,1716488194559,-500.0,0.00024699,2]
[327794732,1716488194610,-500.0,0.00024699,2]
[327794733,1716488194674,-500.0,0.00024699,2]
[327794734,1716488194727,-500.0,0.00024699,2]
[327794735,1716488194779,-500.0,0.00024699,2]
[327794736,1716488194829,-613.22,0.00024699,2]
[327794737,1716488194879,-500.0,0.00024699,2]
[327794738,1716488194927,-500.0,0.00024699,2]
[327794739,1716488194976,-500.0,0.00024699,2]
[327794740,1716488195024,-253.30136765,0.00024699,2]
[327794741,1716488195073,-500.0,0.00024699,2]
[327794742,1716488195124,-500.0,0.00024699,2]
[327794743,1716488195177,-508.47177188,0.00024699,2]
[327794744,1716488195229,-500.0,0.00024699,2]
[327794745,1716488195278,-556.43926814,0.00024699,2]
[327794746,1716488195326,-500.0,0.00024699,2]
[327794747,1716488195374,-500.0,0.00024699,2]
[327794748,1716488195422,-500.0,0.00024699,2]
[327794749,1716488195472,-3096.11,0.00024699,2]
[327794750,1716488195523,-500.0,0.00024699,2]
[327794751,1716488195574,-150.0,0.00024699,2]
[327794752,1716488195626,-500.0,0.00024699,2]
[327794753,1716488195678,-500.0,0.00024699,2]
[327794754,1716488195730,-500.0,0.00024699,2]
[327794755,1716488195781,-500.0,0.00024699,2]
[327794756,1716488195829,-500.0,0.00024699,2]
[327794757,1716488195879,-1386.34,0.00024699,2]
[327794758,1716488195928,-500.0,0.00024699,2]
[327794759,1716488195975,-500.0,0.00024699,2]
[327794760,1716488196026,-500.0,0.00024699,2]
[327794761,1716488196076,-500.0,0.00024699,2]
[327794762,1716488196130,-500.0,0.00024699,2]
[327794763,1716488196179,-509.73438404,0.00024699,2]
[327794764,1716488196228,-500.0,0.00024699,2]
[327794765,1716488196278,-500.0,0.00024699,2]
[327794766,1716488196329,-500.0,0.00024699,2]
[327794767,1716488196378,-645.36,0.00024699,2]
[327794768,1716488196431,-500.0,0.00024699,2]
[327794769,1716488196482,-515.11216893,0.00024699,2]
[327794770,1716488196532,-500.0,0.00024699,2]
[327794771,1716488196581,-500.0,0.00024699,2]
[327794772,1716488196630,-250.24998662,0.00024699,2]
[327794773,1716488196904,-500.0,0.00024699,2]
[327794774,1716488196962,-500.0,0.00024699,2]
[327794775,1716488197019,-500.0,0.00024699,2]
[327794776,1716488197072,-509.41673725,0.00024699,2]
[327794777,1716488197123,-502.43888256,0.00024699,2]
[327794778,1716488197178,-500.0,0.00024699,2]
[327794779,1716488197228,-500.0,0.00024699,2]
[327794780,1716488197277,-500.0,0.00024699,2]
[327794781,1716488197330,-500.0,0.00024699,2]
[327794782,1716488197380,-207.35647407,0.00024699,2]
[327794783,1716488197428,-500.0,0.00024699,2]
[327794784,1716488197476,-509.39704784,0.00024699,2]
[327794785,1716488197523,-500.0,0.00024699,2]
[327794786,1716488197572,-908.83,0.00024699,2]
[327794787,1716488197620,-500.0,0.00024699,2]
[327794788,1716488197671,-500.0,0.00024699,2]
[327794789,1716488197723,-500.0,0.00024699,2]
[327794790,1716488197777,-851.85,0.00024699,2]
[327794791,1716488197828,-500.0,0.00024699,2]
[327794792,1716488197877,-483.66875051,0.00024699,2]
[327794793,1716488197925,-500.0,0.00024699,2]
[327794794,1716488197973,-884.88,0.00024699,2]
[327794795,1716488198021,-500.0,0.00024699,2]
[327794796,1716488198070,-500.0,0.00024699,2]
[327794797,1716488198121,-500.0,0.00024699,2]
[327794798,1716488198174,-509.95631684,0.00024699,2]
[327794799,1716488198224,-500.0,0.00024699,2]
[327794800,1716488198275,-500.0,0.00024699,2]
[327794801,1716488198324,-500.0,0.00024699,2]
[327794802,1716488198374,-500.0,0.00024699,2]
[327794803,1716488198427,-500.0,0.00024699,2]
[327794804,1716488198478,-500.0,0.00024699,2]
[327794805,1716488198530,-500.0,0.00024699,2]
[327794806,1716488198583,-500.0,0.00024699,2]
[327794807,1716488198634,-354.62,0.00024742,2]
[327794808,1716488198685,-512.10533173,0.0002475,2]
[327794809,1716488198732,-117804.20308314,0.0002475,2]
[327794810,1716488198784,-1913.382886,0.000248,2]
[327794811,1716488198834,-153.29266499,0.00024805,2]
[327794812,1716488198887,-1566.41558323,0.00024806,2]
[327794813,1716488198939,-354.62,0.00024808,2]
[327794814,1716488198986,-301.2208808,0.00024873,2]
[327794815,1716488199036,-354.62,0.00024873,2]
[327794816,1716488199092,-8437.5685,0.00024898,2]
[327794817,1716488199151,-3504.8607,0.00024898,2]
[327794818,1716488199214,-39356.59245396,0.000249,2]
[327794819,1716488199273,-346.7574014,0.000249,2]
[327794820,1716488199329,-2500.0,0.000249,2]
[327794821,1716488199383,-3742.1812,0.000249,2]
[327794822,1716488199433,-7156.6789,0.000249,2]
[327794823,1716488199491,-775.642,0.000249,2]
[327794824,1716488199546,-7500.0,0.000249,2]
[327794825,1716488199600,-164.1042,0.000249,2]
[327794826,1716488199653,-39198.5375,0.000249,2]
[327794827,1716488199712,-500.0,0.000249,2]
[327794828,1716488199766,-181.8953496,0.000249,2]
[327794829,1716488199822,-12861.33585339,0.000249,2]
[327794830,1716488199879,-354.62,0.00024939,2]
[327794831,1716488199937,-157.24,0.00024948,2]
[327794832,1716488199996,-500.0,0.00024948,2]
[327794833,1716488200049,-500.0,0.00024948,2]
[327794834,1716488200099,-500.0,0.00024948,2]
[327794835,1716488200156,-500.0,0.00024948,2]
[327794836,1716488200209,-595.89,0.00024948,2]
[327794837,1716488200259,-500.0,0.00024948,2]
[327794838,1716488200308,-239.05138011,0.00024948,2]
[327794839,1716488200359,-500.0,0.00024973,2]
[327794840,1716488200411,-224.88,0.00024973,2]
[327794841,1716488200464,-188.74,0.00024973,2]
[327794842,1716488200518,-504.21,0.00024973,2]
[327794843,1716488200568,-193.54,0.00024973,2]
[327794844,1716488200619,-500.0,0.00024973,2]
[327794845,1716488200676,-159.39,0.00024973,2]
[327794846,1716488200728,-531.96,0.00024973,2]
[327794847,1716488200780,-500.0,0.00024973,2]
[327794848,1716488200831,-340.55,0.00024973,2]
[327794849,1716488200881,-500.0,0.00024973,2]